[Event "*** Titled Tuesday Blitz"]
[Site "Chess.com"]
[Date "2021.03.09"]
[Round "5"]
[White "davigator"]
[Black "LubovMarkelova"]
[Result "1-0"]
[WhiteElo "2388"]
[BlackElo "2228"]
[TimeControl "180+1"]
[EndTime "10:57:54 PST"]
[Termination "davigator won on time"]

1. e4 {[%clk 0:03:00.9]} 1... e6 {[%clk 0:03:00]} 2. d4 {[%clk 0:03:00.1]} 2...
d5 {[%clk 0:03:00]} 3. Nc3 {[%clk 0:03:00.2]} 3... Nf6 {[%clk 0:02:58.6]} 4. e5
{[%clk 0:03:00.6]} 4... Nfd7 {[%clk 0:02:58.4]} 5. f4 {[%clk 0:03:00.6]} 5... c5
{[%clk 0:02:58.4]} 6. Nf3 {[%clk 0:03:00.8]} 6... Nc6 {[%clk 0:02:58.9]} 7. Be3
{[%clk 0:03:00.9]} 7... Be7 {[%clk 0:02:58.4]} 8. Qd2 {[%clk 0:03:00]} 8... b6
{[%clk 0:02:58]} 9. Bb5 {[%clk 0:02:58]} 9... Bb7 {[%clk 0:02:57.3]} 10. O-O
{[%clk 0:02:56.7]} 10... O-O {[%clk 0:02:55]} 11. Kh1 {[%clk 0:02:56.1]} 11...
f5 {[%clk 0:02:52.5]} 12. Rg1 {[%clk 0:02:39.5]} 12... cxd4 {[%clk 0:02:28.8]}
13. Bxd4 {[%clk 0:02:35.4]} 13... Nxd4 {[%clk 0:02:22.3]} 14. Nxd4 {[%clk
0:02:34.3]} 14... Nc5 {[%clk 0:02:14.3]} 15. Rad1 {[%clk 0:02:28]} 15... Qc8
{[%clk 0:02:03.2]} 16. Nce2 {[%clk 0:02:09.9]} 16... Ne4 {[%clk 0:02:02.3]} 17.
Qe3 {[%clk 0:02:10.3]} 17... g5 {[%clk 0:01:58.3]} 18. g4 {[%clk 0:02:04.7]}
18... Kh8 {[%clk 0:01:46]} 19. gxf5 {[%clk 0:02:03]} 19... gxf4 {[%clk
0:01:33.6]} 20. Nxf4 {[%clk 0:02:01.5]} 20... exf5 {[%clk 0:01:22.9]} 21. Rg2
{[%clk 0:01:49.9]} 21... Rg8 {[%clk 0:01:19.5]} 22. Rdg1 {[%clk 0:01:48.1]}
22... Qc5 {[%clk 0:01:06.2]} 23. c3 {[%clk 0:01:36.8]} 23... a6 {[%clk
0:00:55.9]} 24. Bd3 {[%clk 0:01:35.7]} 24... Bh4 {[%clk 0:00:47.1]} 25. h3
{[%clk 0:01:19.8]} 25... Nf2+ {[%clk 0:00:45.3]} 26. Rxf2 {[%clk 0:01:18.3]}
26... Bxf2 {[%clk 0:00:45.3]} 27. Qxf2 {[%clk 0:01:18]} 27... Rxg1+ {[%clk
0:00:44.7]} 28. Qxg1 {[%clk 0:01:17.8]} 28... Rg8 {[%clk 0:00:44.3]} 29. Qe3
{[%clk 0:01:17.4]} 29... Qe7 {[%clk 0:00:42.6]} 30. Kh2 {[%clk 0:01:13.8]} 30...
Qg5 {[%clk 0:00:42.3]} 31. e6 {[%clk 0:01:11]} 31... b5 {[%clk 0:00:27.5]} 32.
Bxf5 {[%clk 0:01:10]} 32... Rf8 {[%clk 0:00:24.2]} 33. Qe5+ {[%clk 0:01:07.4]}
33... Kg8 {[%clk 0:00:18.9]} 34. Bxh7+ {[%clk 0:01:06.8]} 34... Kxh7 {[%clk
0:00:18.2]} 35. Qxg5 {[%clk 0:01:06.4]} 1-0

[Event "*** Titled Tuesday Blitz"]
[Site "Chess.com"]
[Date "2021.03.09"]
[Round "5"]
[White "Make_it_shine060"]
[Black "kekic76"]
[Result "0-1"]
[WhiteElo "2241"]
[BlackElo "2344"]
[TimeControl "180+1"]
[EndTime "10:57:54 PST"]
[Termination "kekic76 won by resignation"]

1. d4 {[%clk 0:03:00.9]} 1... d6 {[%clk 0:02:59.8]} 2. c4 {[%clk 0:03:01.8]}
2... e5 {[%clk 0:02:59.5]} 3. Nc3 {[%clk 0:02:57.4]} 3... Nc6 {[%clk 0:02:58.7]}
4. Nf3 {[%clk 0:02:55.1]} 4... Be7 {[%clk 0:02:57.8]} 5. e4 {[%clk 0:02:51.9]}
5... Nf6 {[%clk 0:02:54.3]} 6. Be2 {[%clk 0:02:35.3]} 6... O-O {[%clk
0:02:53.7]} 7. O-O {[%clk 0:02:34.8]} 7... exd4 {[%clk 0:02:50]} 8. Nxd4 {[%clk
0:02:35.7]} 8... Nxd4 {[%clk 0:02:49.7]} 9. Qxd4 {[%clk 0:02:35.3]} 9... Nd7
{[%clk 0:02:50.1]} 10. Nd5 {[%clk 0:02:31.3]} 10... Bf6 {[%clk 0:02:47.2]} 11.
Nxf6+ {[%clk 0:02:28.6]} 11... Qxf6 {[%clk 0:02:47.5]} 12. Qd3 {[%clk
0:02:20.5]} 12... Re8 {[%clk 0:02:43.4]} 13. Qg3 {[%clk 0:02:14]} 13... Rxe4
{[%clk 0:02:25.3]} 14. Bg5 {[%clk 0:02:13]} 14... Qe5 {[%clk 0:02:22.7]} 15. f4
{[%clk 0:01:51.4]} 15... Qd4+ {[%clk 0:02:19.5]} 16. Qf2 {[%clk 0:01:48.8]}
16... Qxf2+ {[%clk 0:02:15.7]} 17. Kxf2 {[%clk 0:01:43.6]} 17... Nc5 {[%clk
0:01:57.2]} 18. b4 {[%clk 0:01:38]} 18... Ne6 {[%clk 0:01:50.3]} 19. Bd3 {[%clk
0:01:34.2]} 19... Nxg5 {[%clk 0:01:45.9]} 20. Bxe4 {[%clk 0:01:29.7]} 20...
Nxe4+ {[%clk 0:01:45.5]} 21. Ke3 {[%clk 0:01:29.7]} 21... Nf6 {[%clk 0:01:43.6]}
22. h3 {[%clk 0:01:28.3]} 22... h5 {[%clk 0:01:43.6]} 23. Kf3 {[%clk 0:01:27.1]}
23... Bd7 {[%clk 0:01:42.2]} 24. Rfe1 {[%clk 0:01:26.2]} 24... Kf8 {[%clk
0:01:41]} 25. Rad1 {[%clk 0:01:23.1]} 25... Re8 {[%clk 0:01:26.5]} 26. Rxe8+
{[%clk 0:01:20.1]} 26... Kxe8 {[%clk 0:01:26.2]} 27. c5 {[%clk 0:01:19.5]} 27...
dxc5 {[%clk 0:01:23.4]} 28. bxc5 {[%clk 0:01:19.1]} 28... Bc6+ {[%clk 0:01:20]}
29. Ke3 {[%clk 0:01:16.6]} 29... Nd5+ {[%clk 0:01:16.8]} 30. Kf2 {[%clk
0:01:13.9]} 30... Nxf4 {[%clk 0:01:15.8]} 31. Kg3 {[%clk 0:01:10.3]} 31... Ne6
{[%clk 0:01:12]} 32. Rc1 {[%clk 0:01:07.7]} 32... g5 {[%clk 0:01:09.9]} 33. h4
{[%clk 0:01:03.5]} 33... gxh4+ {[%clk 0:00:59.1]} 34. Kxh4 {[%clk 0:01:04.4]}
34... Bxg2 {[%clk 0:00:58.8]} 35. Kxh5 {[%clk 0:01:04]} 35... Bd5 {[%clk
0:00:51.4]} 36. Kg4 {[%clk 0:01:02.7]} 36... Kd7 {[%clk 0:00:49.6]} 37. Kf5
{[%clk 0:00:59.9]} 37... Kc6 {[%clk 0:00:48.5]} 38. Ke5 {[%clk 0:00:56]} 38...
Bxa2 {[%clk 0:00:39.2]} 0-1

[Event "*** Titled Tuesday Blitz"]
[Site "Chess.com"]
[Date "2021.03.09"]
[Round "5"]
[White "Ghost_Pepper"]
[Black "AlexSuv"]
[Result "1-0"]
[WhiteElo "2401"]
[BlackElo "2514"]
[TimeControl "180+1"]
[EndTime "10:57:56 PST"]
[Termination "Ghost_Pepper won by resignation"]

1. e4 {[%clk 0:03:00.9]} 1... c5 {[%clk 0:02:57.7]} 2. Nf3 {[%clk 0:03:00.3]}
2... e6 {[%clk 0:02:57.6]} 3. g3 {[%clk 0:02:58.1]} 3... d5 {[%clk 0:02:57.3]}
4. exd5 {[%clk 0:02:57.7]} 4... exd5 {[%clk 0:02:58.2]} 5. Bg2 {[%clk
0:02:58.2]} 5... Nc6 {[%clk 0:02:58.2]} 6. d4 {[%clk 0:02:57.9]} 6... Bg4 {[%clk
0:02:56.3]} 7. O-O {[%clk 0:02:54.5]} 7... cxd4 {[%clk 0:02:50.7]} 8. Re1+
{[%clk 0:02:48.9]} 8... Be7 {[%clk 0:02:46]} 9. h3 {[%clk 0:02:27]} 9... Bxf3
{[%clk 0:02:36.9]} 10. Qxf3 {[%clk 0:02:21.3]} 10... Nf6 {[%clk 0:02:35.8]} 11.
Nd2 {[%clk 0:02:17.8]} 11... O-O {[%clk 0:02:33.1]} 12. Nb3 {[%clk 0:02:15.1]}
12... Rc8 {[%clk 0:02:29.6]} 13. Bg5 {[%clk 0:02:11.2]} 13... h6 {[%clk
0:02:29.5]} 14. Bf4 {[%clk 0:02:00.5]} 14... Nb4 {[%clk 0:02:26.8]} 15. Nxd4
{[%clk 0:01:58.9]} 15... Ne4 {[%clk 0:02:19.5]} 16. c3 {[%clk 0:01:52.5]} 16...
Na6 {[%clk 0:02:15.9]} 17. Rad1 {[%clk 0:01:51]} 17... Bf6 {[%clk 0:02:11.5]}
18. Nf5 {[%clk 0:01:48.6]} 18... Qa5 {[%clk 0:01:57.2]} 19. Bxh6 {[%clk
0:01:42.1]} 19... Qb6 {[%clk 0:00:48.2]} 20. Bxg7 {[%clk 0:01:17.4]} 20... Bxg7
{[%clk 0:00:43.4]} 21. Ne7+ {[%clk 0:01:12.1]} 21... Kh8 {[%clk 0:00:34.2]} 22.
Rxd5 {[%clk 0:01:07.7]} 22... Nf6 {[%clk 0:00:22.2]} 23. Rd4 {[%clk 0:00:50.6]}
23... Bh6 {[%clk 0:00:04.3]} 24. Rh4 {[%clk 0:00:48.3]} 24... Nh7 {[%clk
0:00:03.8]} 25. Nxc8 {[%clk 0:00:42.1]} 25... Rxc8 {[%clk 0:00:03.4]} 26. Qxb7
{[%clk 0:00:41.7]} 26... Qxb7 {[%clk 0:00:03.1]} 27. Bxb7 {[%clk 0:00:42.6]}
27... Rb8 {[%clk 0:00:03.7]} 28. Bxa6 {[%clk 0:00:42.7]} 1-0

[Event "*** Titled Tuesday Blitz"]
[Site "Chess.com"]
[Date "2021.03.09"]
[Round "5"]
[White "Duhless"]
[Black "alexrustemov"]
[Result "1-0"]
[WhiteElo "3020"]
[BlackElo "2766"]
[TimeControl "180+1"]
[EndTime "10:57:57 PST"]
[Termination "Duhless won on time"]

1. d4 {[%clk 0:03:00.9]} 1... d5 {[%clk 0:02:59.4]} 2. Nf3 {[%clk 0:03:01.4]}
2... Nf6 {[%clk 0:02:58.8]} 3. c4 {[%clk 0:03:01.9]} 3... e6 {[%clk 0:02:58.4]}
4. g3 {[%clk 0:03:02.4]} 4... Bb4+ {[%clk 0:02:57.1]} 5. Nbd2 {[%clk 0:03:01.4]}
5... O-O {[%clk 0:02:55.5]} 6. Bg2 {[%clk 0:03:01.5]} 6... b6 {[%clk 0:02:55.2]}
7. O-O {[%clk 0:03:01.4]} 7... Bb7 {[%clk 0:02:54.8]} 8. b3 {[%clk 0:03:01.2]}
8... Nbd7 {[%clk 0:02:40.7]} 9. Bb2 {[%clk 0:03:00.7]} 9... c5 {[%clk
0:02:28.8]} 10. a3 {[%clk 0:03:00]} 10... Bxd2 {[%clk 0:02:27.1]} 11. Nxd2
{[%clk 0:02:59.3]} 11... Qe7 {[%clk 0:02:08.8]} 12. Re1 {[%clk 0:02:53.2]} 12...
cxd4 {[%clk 0:02:03]} 13. Bxd4 {[%clk 0:02:51.5]} 13... e5 {[%clk 0:01:55.8]}
14. Bb2 {[%clk 0:02:51]} 14... Nc5 {[%clk 0:01:39.9]} 15. b4 {[%clk 0:02:44.1]}
15... Nce4 {[%clk 0:01:30.3]} 16. cxd5 {[%clk 0:02:42.6]} 16... Bxd5 {[%clk
0:01:22.5]} 17. Nxe4 {[%clk 0:02:41.9]} 17... Bxe4 {[%clk 0:01:22.4]} 18. Bxe4
{[%clk 0:02:42.4]} 18... Nxe4 {[%clk 0:01:22.2]} 19. Qd5 {[%clk 0:02:43]} 19...
Nf6 {[%clk 0:00:45]} 20. Qxe5 {[%clk 0:02:42.4]} 20... Qxe5 {[%clk 0:00:44.4]}
21. Bxe5 {[%clk 0:02:43.3]} 21... Rfe8 {[%clk 0:00:44.1]} 22. Bd4 {[%clk
0:02:41.2]} 22... Rad8 {[%clk 0:00:34.8]} 23. e3 {[%clk 0:02:36.8]} 23... Ne4
{[%clk 0:00:33.6]} 24. Kg2 {[%clk 0:02:34.7]} 24... f6 {[%clk 0:00:33.3]} 25. b5
{[%clk 0:02:28.1]} 25... Rc8 {[%clk 0:00:30.4]} 26. Rec1 {[%clk 0:02:21.3]}
26... Kf7 {[%clk 0:00:30.1]} 27. a4 {[%clk 0:02:20.8]} 27... Ke6 {[%clk
0:00:21.8]} 28. a5 {[%clk 0:01:36.7]} 28... Rxc1 {[%clk 0:00:16.7]} 29. Rxc1
{[%clk 0:01:37.6]} 29... Nd6 {[%clk 0:00:16.9]} 30. axb6 {[%clk 0:01:28.9]}
30... axb6 {[%clk 0:00:17.8]} 31. Rc6 {[%clk 0:01:28.5]} 31... Rb8 {[%clk
0:00:05.8]} 32. Bxb6 {[%clk 0:01:27.8]} 32... Kd5 {[%clk 0:00:05.1]} 33. Rc5+
{[%clk 0:01:25.1]} 33... Ke6 {[%clk 0:00:04.7]} 34. Bc7 {[%clk 0:01:25.7]} 34...
Rb7 {[%clk 0:00:02.7]} 35. Rc6 {[%clk 0:01:05.1]} 1-0

[Event "*** Titled Tuesday Blitz"]
[Site "Chess.com"]
[Date "2021.03.09"]
[Round "5"]
[White "Sashadav97"]
[Black "Saxar85"]
[Result "0-1"]
[WhiteElo "2593"]
[BlackElo "2794"]
[TimeControl "180+1"]
[EndTime "10:57:57 PST"]
[Termination "Saxar85 won by resignation"]

1. d4 {[%clk 0:03:00.9]} 1... Nf6 {[%clk 0:02:55.9]} 2. c4 {[%clk 0:03:00.9]}
2... d6 {[%clk 0:02:55.3]} 3. Nc3 {[%clk 0:02:58.9]} 3... e5 {[%clk 0:02:54.4]}
4. Nf3 {[%clk 0:02:58.7]} 4... e4 {[%clk 0:02:53.6]} 5. Ng5 {[%clk 0:02:58.5]}
5... Bf5 {[%clk 0:02:48.3]} 6. g3 {[%clk 0:02:52]} 6... h6 {[%clk 0:02:45.5]} 7.
Nh3 {[%clk 0:02:52]} 7... c6 {[%clk 0:02:40.2]} 8. Bg2 {[%clk 0:02:50.9]} 8...
Be7 {[%clk 0:02:37.5]} 9. f3 {[%clk 0:02:49.9]} 9... exf3 {[%clk 0:02:33.1]} 10.
exf3 {[%clk 0:02:50.8]} 10... O-O {[%clk 0:02:32.3]} 11. O-O {[%clk 0:02:50.2]}
11... Na6 {[%clk 0:02:31.5]} 12. Be3 {[%clk 0:02:48.6]} 12... d5 {[%clk
0:02:28.9]} 13. b3 {[%clk 0:02:37.7]} 13... Nc7 {[%clk 0:02:20.7]} 14. Qd2
{[%clk 0:02:32.4]} 14... Qd7 {[%clk 0:02:10.2]} 15. Nf4 {[%clk 0:02:28.8]} 15...
Ne6 {[%clk 0:01:42.7]} 16. g4 {[%clk 0:02:05.9]} 16... Bh7 {[%clk 0:01:41.1]}
17. Nxe6 {[%clk 0:02:01.3]} 17... Qxe6 {[%clk 0:01:40.2]} 18. c5 {[%clk
0:02:01.6]} 18... b6 {[%clk 0:01:38.1]} 19. b4 {[%clk 0:02:00.5]} 19... a5
{[%clk 0:01:36.6]} 20. a3 {[%clk 0:02:01.1]} 20... axb4 {[%clk 0:01:34.9]} 21.
axb4 {[%clk 0:02:02]} 21... bxc5 {[%clk 0:01:31.3]} 22. bxc5 {[%clk 0:02:02.9]}
22... Qd7 {[%clk 0:01:24.8]} 23. h3 {[%clk 0:01:56.9]} 23... Rfb8 {[%clk
0:01:20.3]} 24. Bf4 {[%clk 0:01:52.6]} 24... Re8 {[%clk 0:01:15.5]} 25. Na4
{[%clk 0:01:51.1]} 25... Ra6 {[%clk 0:01:04.6]} 26. Nb6 {[%clk 0:01:48.5]} 26...
Qa7 {[%clk 0:01:03.9]} 27. Qb2 {[%clk 0:01:22.9]} 27... Bd8 {[%clk 0:00:56.3]}
28. Nc8 {[%clk 0:01:00.8]} 28... Qa8 {[%clk 0:00:28.9]} 29. Nd6 {[%clk
0:01:00.8]} 29... Rf8 {[%clk 0:00:23.8]} 30. Qb7 {[%clk 0:00:35.3]} 30... Rxa1
{[%clk 0:00:20.1]} 0-1

[Event "*** Titled Tuesday Blitz"]
[Site "Chess.com"]
[Date "2021.03.09"]
[Round "5"]
[White "zverr1"]
[Black "gusmaster2262"]
[Result "1-0"]
[WhiteElo "2433"]
[BlackElo "2137"]
[TimeControl "180+1"]
[EndTime "10:57:58 PST"]
[Termination "zverr1 won on time"]

1. e4 {[%clk 0:03:00.9]} 1... c6 {[%clk 0:02:59.8]} 2. Nf3 {[%clk 0:02:58]} 2...
d5 {[%clk 0:03:00.1]} 3. exd5 {[%clk 0:02:58.9]} 3... cxd5 {[%clk 0:02:59.8]} 4.
Ne5 {[%clk 0:02:59.4]} 4... Nf6 {[%clk 0:02:55.9]} 5. d4 {[%clk 0:02:58.4]} 5...
Nc6 {[%clk 0:02:53.5]} 6. Bb5 {[%clk 0:02:58.3]} 6... Bd7 {[%clk 0:02:53.4]} 7.
Nxd7 {[%clk 0:02:58.6]} 7... Qxd7 {[%clk 0:02:51.7]} 8. c3 {[%clk 0:02:58.7]}
8... e6 {[%clk 0:02:51.4]} 9. O-O {[%clk 0:02:56]} 9... Bd6 {[%clk 0:02:50.1]}
10. Nd2 {[%clk 0:02:55.9]} 10... O-O {[%clk 0:02:49.5]} 11. Nf3 {[%clk 0:02:56]}
11... Qc7 {[%clk 0:02:47.5]} 12. h3 {[%clk 0:02:53.8]} 12... Ne7 {[%clk
0:02:30]} 13. Bd3 {[%clk 0:02:48.7]} 13... Ng6 {[%clk 0:02:24.4]} 14. Qc2 {[%clk
0:02:27.5]} 14... Rac8 {[%clk 0:02:15.7]} 15. Bg5 {[%clk 0:02:20.6]} 15... a6
{[%clk 0:01:55.3]} 16. a4 {[%clk 0:02:13]} 16... Bf4 {[%clk 0:01:51.1]} 17. Bxg6
{[%clk 0:02:00.8]} 17... hxg6 {[%clk 0:01:41.8]} 18. a5 {[%clk 0:01:55.1]} 18...
Ne4 {[%clk 0:01:28.1]} 19. Bxf4 {[%clk 0:01:51.3]} 19... Qxf4 {[%clk 0:01:27.8]}
20. Qc1 {[%clk 0:01:46.9]} 20... Qxc1 {[%clk 0:01:22]} 21. Rfxc1 {[%clk
0:01:47.8]} 21... Rc7 {[%clk 0:01:16.9]} 22. Ra4 {[%clk 0:01:42.4]} 22... Rfc8
{[%clk 0:01:14.6]} 23. Rb4 {[%clk 0:01:40.6]} 23... f6 {[%clk 0:01:13.6]} 24.
Kf1 {[%clk 0:01:39.2]} 24... Kf7 {[%clk 0:01:02.4]} 25. Ke2 {[%clk 0:01:38.8]}
25... Ke7 {[%clk 0:01:02.3]} 26. Ne1 {[%clk 0:01:32.9]} 26... Nd6 {[%clk
0:01:00.8]} 27. Nd3 {[%clk 0:01:29]} 27... Nc4 {[%clk 0:00:57.4]} 28. Ra1 {[%clk
0:01:16.9]} 28... e5 {[%clk 0:00:40]} 29. dxe5 {[%clk 0:01:10.4]} 29... fxe5
{[%clk 0:00:36]} 30. b3 {[%clk 0:00:58.1]} 30... e4 {[%clk 0:00:24.6]} 31. Nf4
{[%clk 0:00:57]} 1-0

[Event "*** Titled Tuesday Blitz"]
[Site "Chess.com"]
[Date "2021.03.09"]
[Round "5"]
[White "Oligan22"]
[Black "andrewtnb"]
[Result "1-0"]
[WhiteElo "2482"]
[BlackElo "2320"]
[TimeControl "180+1"]
[EndTime "10:57:59 PST"]
[Termination "Oligan22 won on time"]

1. d4 {[%clk 0:03:00.9]} 1... Nf6 {[%clk 0:02:45.4]} 2. Bf4 {[%clk 0:03:00.3]}
2... d5 {[%clk 0:02:39.5]} 3. e3 {[%clk 0:02:59.8]} 3... c6 {[%clk 0:02:36.8]}
4. Nf3 {[%clk 0:02:54]} 4... Bg4 {[%clk 0:02:35.7]} 5. h3 {[%clk 0:02:49.5]}
5... Bh5 {[%clk 0:02:31.9]} 6. c4 {[%clk 0:02:49.5]} 6... Bxf3 {[%clk
0:02:25.6]} 7. Qxf3 {[%clk 0:02:47.3]} 7... e6 {[%clk 0:02:25.1]} 8. a3 {[%clk
0:02:46.9]} 8... Nbd7 {[%clk 0:02:19.9]} 9. Nc3 {[%clk 0:02:44.6]} 9... Qa5
{[%clk 0:01:32.4]} 10. Bd3 {[%clk 0:02:19.8]} 10... dxc4 {[%clk 0:01:29.9]} 11.
Bxc4 {[%clk 0:02:19.2]} 11... Nd5 {[%clk 0:01:30.5]} 12. Rc1 {[%clk 0:02:12.3]}
12... N7b6 {[%clk 0:01:21.6]} 13. Bxd5 {[%clk 0:01:53]} 13... Nxd5 {[%clk
0:01:13.3]} 14. O-O {[%clk 0:01:50.6]} 14... Be7 {[%clk 0:00:57.8]} 15. Nxd5
{[%clk 0:01:41.6]} 15... Qxd5 {[%clk 0:00:41.5]} 16. Qg3 {[%clk 0:01:32.5]}
16... O-O {[%clk 0:00:40.3]} 17. Be5 {[%clk 0:01:31.1]} 17... f6 {[%clk
0:00:32.6]} 18. Bf4 {[%clk 0:01:24.5]} 18... Kh8 {[%clk 0:00:25.5]} 19. Qg4
{[%clk 0:01:12.9]} 19... Rad8 {[%clk 0:00:13.9]} 20. Rfd1 {[%clk 0:01:09.4]}
20... Rd7 {[%clk 0:00:13]} 21. Qe2 {[%clk 0:00:56.4]} 21... Bd6 {[%clk
0:00:06.5]} 22. Bxd6 {[%clk 0:00:54.5]} 22... Rxd6 {[%clk 0:00:05.1]} 23. Rc5
{[%clk 0:00:52.9]} 23... Qb3 {[%clk 0:00:03.4]} 24. Rd3 {[%clk 0:00:51.3]} 24...
Qa2 {[%clk 0:00:01.8]} 25. Qc2 {[%clk 0:00:36.7]} 1-0

[Event "*** Titled Tuesday Blitz"]
[Site "Chess.com"]
[Date "2021.03.09"]
[Round "5"]
[White "A-Fier"]
[Black "Sanan_Sjugirov"]
[Result "0-1"]
[WhiteElo "2694"]
[BlackElo "2896"]
[TimeControl "180+1"]
[EndTime "10:58:00 PST"]
[Termination "Sanan_Sjugirov won by resignation"]

1. d4 {[%clk 0:03:00.9]} 1... d5 {[%clk 0:03:00.1]} 2. c4 {[%clk 0:03:01.1]}
2... c6 {[%clk 0:03:00.4]} 3. Nc3 {[%clk 0:03:01.3]} 3... Nf6 {[%clk 0:03:00.2]}
4. e3 {[%clk 0:03:01.8]} 4... a6 {[%clk 0:02:53.9]} 5. Qc2 {[%clk 0:03:00.4]}
5... e6 {[%clk 0:02:49.2]} 6. Nf3 {[%clk 0:02:59.8]} 6... Nbd7 {[%clk 0:02:46]}
7. b3 {[%clk 0:03:00]} 7... Bd6 {[%clk 0:02:29.2]} 8. Be2 {[%clk 0:02:59.6]}
8... O-O {[%clk 0:02:29.2]} 9. Bb2 {[%clk 0:02:59.8]} 9... e5 {[%clk 0:02:28.7]}
10. cxd5 {[%clk 0:02:58.6]} 10... cxd5 {[%clk 0:02:28.4]} 11. dxe5 {[%clk
0:02:58.6]} 11... Nxe5 {[%clk 0:02:29.3]} 12. O-O {[%clk 0:02:57.3]} 12... Bg4
{[%clk 0:02:22.2]} 13. Nxe5 {[%clk 0:02:54.5]} 13... Bxe5 {[%clk 0:02:23.1]} 14.
Bxg4 {[%clk 0:02:54.5]} 14... Nxg4 {[%clk 0:02:23.1]} 15. h3 {[%clk 0:02:54.9]}
15... Nf6 {[%clk 0:02:22.7]} 16. Ne2 {[%clk 0:02:51.3]} 16... Rc8 {[%clk
0:02:21.8]} 17. Qb1 {[%clk 0:02:51.8]} 17... Qd6 {[%clk 0:02:12.7]} 18. Bxe5
{[%clk 0:02:51]} 18... Qxe5 {[%clk 0:02:13.6]} 19. Qd3 {[%clk 0:02:51.3]} 19...
Rc7 {[%clk 0:01:58.4]} 20. Rac1 {[%clk 0:02:50.5]} 20... Rfc8 {[%clk 0:01:57.9]}
21. Rxc7 {[%clk 0:02:50]} 21... Rxc7 {[%clk 0:01:58.8]} 22. Rd1 {[%clk
0:02:46.9]} 22... Qb2 {[%clk 0:01:54.9]} 23. Nf4 {[%clk 0:02:31.8]} 23... Rc5
{[%clk 0:01:18.8]} 24. Qd4 {[%clk 0:02:12.4]} 24... Qxd4 {[%clk 0:01:13.7]} 25.
Rxd4 {[%clk 0:02:13.3]} 25... Kf8 {[%clk 0:01:09.1]} 26. Rd2 {[%clk 0:02:13.2]}
26... Ke7 {[%clk 0:01:08.1]} 27. f3 {[%clk 0:02:13.6]} 27... g5 {[%clk
0:00:54.8]} 28. Ne2 {[%clk 0:02:12.3]} 28... Ne8 {[%clk 0:00:43.9]} 29. Kf2
{[%clk 0:02:09.9]} 29... Nc7 {[%clk 0:00:41.6]} 30. Nd4 {[%clk 0:02:08.4]} 30...
Kf6 {[%clk 0:00:36.7]} 31. g4 {[%clk 0:02:08.7]} 31... Rc1 {[%clk 0:00:26.7]}
32. Nf5 {[%clk 0:02:07.7]} 32... h5 {[%clk 0:00:23.2]} 33. Ng3 {[%clk
0:01:51.7]} 33... h4 {[%clk 0:00:22.8]} 34. Nf5 {[%clk 0:01:52.3]} 34... Ke5
{[%clk 0:00:20.5]} 35. Kg2 {[%clk 0:01:40.9]} 35... b5 {[%clk 0:00:20.3]} 36.
Kf2 {[%clk 0:01:31.3]} 36... b4 {[%clk 0:00:20.5]} 37. f4+ {[%clk 0:01:31.8]}
37... gxf4 {[%clk 0:00:19.8]} 38. Nxh4 {[%clk 0:01:31.5]} 38... fxe3+ {[%clk
0:00:18.6]} 39. Kxe3 {[%clk 0:01:31.6]} 39... Rc3+ {[%clk 0:00:10.9]} 40. Rd3
{[%clk 0:01:27.7]} 40... d4+ {[%clk 0:00:10.7]} 41. Kd2 {[%clk 0:01:28]} 41...
Ke4 {[%clk 0:00:10.7]} 42. Rxc3 {[%clk 0:01:25.3]} 42... bxc3+ {[%clk
0:00:11.6]} 43. Kc2 {[%clk 0:01:24.8]} 43... Nd5 {[%clk 0:00:12]} 44. Nf5 {[%clk
0:01:20.8]} 44... Nb4+ {[%clk 0:00:11.7]} 45. Kc1 {[%clk 0:01:20.6]} 45... d3
{[%clk 0:00:11.1]} 0-1

[Event "*** Titled Tuesday Blitz"]
[Site "Chess.com"]
[Date "2021.03.09"]
[Round "5"]
[White "Vugar_Manafov"]
[Black "Shuvalov"]
[Result "1-0"]
[WhiteElo "2673"]
[BlackElo "2512"]
[TimeControl "180+1"]
[EndTime "10:58:01 PST"]
[Termination "Vugar_Manafov won by checkmate"]

1. Nf3 {[%clk 0:03:00.9]} 1... d5 {[%clk 0:02:59.2]} 2. g3 {[%clk 0:02:59.2]}
2... Nf6 {[%clk 0:02:58.9]} 3. Bg2 {[%clk 0:02:59.4]} 3... Bf5 {[%clk
0:02:59.2]} 4. O-O {[%clk 0:02:59.3]} 4... e6 {[%clk 0:02:59.6]} 5. d3 {[%clk
0:02:58.8]} 5... Be7 {[%clk 0:02:57.4]} 6. Nbd2 {[%clk 0:02:59.2]} 6... h6
{[%clk 0:02:57.2]} 7. b3 {[%clk 0:02:57.8]} 7... O-O {[%clk 0:02:56.3]} 8. Bb2
{[%clk 0:02:56.6]} 8... c5 {[%clk 0:02:56.3]} 9. c4 {[%clk 0:02:54.7]} 9... d4
{[%clk 0:02:45.5]} 10. b4 {[%clk 0:02:52]} 10... Nc6 {[%clk 0:02:40.8]} 11. bxc5
{[%clk 0:02:48.3]} 11... e5 {[%clk 0:02:11.4]} 12. Nb3 {[%clk 0:02:41.3]} 12...
Nd7 {[%clk 0:02:07.5]} 13. e4 {[%clk 0:02:20.2]} 13... Bg4 {[%clk 0:02:02.1]}
14. h3 {[%clk 0:02:18.6]} 14... Bh5 {[%clk 0:01:43.3]} 15. Qd2 {[%clk
0:02:08.1]} 15... a5 {[%clk 0:01:30.5]} 16. a4 {[%clk 0:02:02.6]} 16... Bxf3
{[%clk 0:01:00.9]} 17. Bxf3 {[%clk 0:02:02.5]} 17... Bxc5 {[%clk 0:01:01.6]} 18.
Bg2 {[%clk 0:01:55.7]} 18... Bb4 {[%clk 0:01:01.3]} 19. Qe2 {[%clk 0:01:52.1]}
19... Qe7 {[%clk 0:00:58.4]} 20. f4 {[%clk 0:01:49.7]} 20... Rad8 {[%clk
0:00:54.3]} 21. Rf2 {[%clk 0:01:39.8]} 21... Nc5 {[%clk 0:00:38.2]} 22. Nxc5
{[%clk 0:01:38.4]} 22... Bxc5 {[%clk 0:00:39.1]} 23. Raf1 {[%clk 0:01:36.3]}
23... Bd6 {[%clk 0:00:35.2]} 24. Bc1 {[%clk 0:01:35.1]} 24... Ra8 {[%clk
0:00:27.7]} 25. Qg4 {[%clk 0:01:24.5]} 25... Kh8 {[%clk 0:00:24.3]} 26. h4
{[%clk 0:01:23.1]} 26... Ra6 {[%clk 0:00:23.5]} 27. Qh5 {[%clk 0:01:19.1]} 27...
Nb4 {[%clk 0:00:21.5]} 28. Rf3 {[%clk 0:01:10.5]} 28... Kg8 {[%clk 0:00:13.6]}
29. f5 {[%clk 0:01:06.8]} 29... Qd8 {[%clk 0:00:11.7]} 30. f6 {[%clk 0:01:02.3]}
30... Bc5 {[%clk 0:00:10.2]} 31. Bxh6 {[%clk 0:00:59.7]} 31... Rxf6 {[%clk
0:00:07.5]} 32. Rxf6 {[%clk 0:00:58.8]} 32... Qxf6 {[%clk 0:00:08.4]} 33. Rxf6
{[%clk 0:00:57.9]} 33... gxf6 {[%clk 0:00:09.3]} 34. Qg4+ {[%clk 0:00:57.2]}
34... Kh7 {[%clk 0:00:09.7]} 35. Qg7# {[%clk 0:00:57.9]} 1-0